Cogmind - Beta 13 @@@ ROGUE MODE // 2024.04.06 @ 18:43:13 Player: demon Result: Destroyed by as-51007 with Assembled Heavy Rifle Performance ------------- Evolutions (0) 0 Regions Visited (4) 800 Robots Destroyed (18) 90 Value Destroyed (473) 473 Prototype IDs (0) 0 Alien Tech Used (0) 0 Bonus (300) 300 TOTAL SCORE: 1663 Bonus ------- Aligned with FarCom 300 Cogmind --------- Core Integrity 0/250 Matter 300/300 Energy 250/250 System Corruption 0% Temperature Cool (0) Movement Treading (160) Location -9/Mines Parts ------- > --- POWER (1) -------- Ion Engine > --- PROPULSION (2) --- Light Treads Light Treads > --- UTILITY (2) ------ Small Storage Unit Hardened Medium Armor Plating > --- WEAPON (2) ------- Light Assault Rifle Grenade Launcher > --- INVENTORY (8) ---- Light Ion Engine Advanced Visual Processing Unit ECM Suite Reflective Plating AWS/Autocannon Datajack Peak State ------------ > --- POWER ------------ Ion Engine > --- PROPULSION ------- Light Treads Light Treads > --- UTILITY ---------- Small Storage Unit Hardened Medium Armor Plating > --- WEAPON ----------- Light Assault Rifle Datajack > --- INVENTORY -------- Light Ion Engine Advanced Visual Processing Unit ECM Suite Reflective Plating AWS/Autocannon [Rating: 12] Favorites ----------- Power Ion Engine Engine Ion Engine Propulsion Light Treads Treads Light Treads Wheel Compact Wheel Utility Small Storage Unit Device ECM Suite Storage Small Storage Unit Protection Hardened Medium Armor Plating Weapon Light Assault Rifle Energy Gun EM Pulse Gun Ballistic Gun Light Assault Rifle Launcher Grenade Launcher Special Melee Weapon Datajack Build | -11 -10 -10 -10 -9 ------- Run | Yrd Mat Min Exi Min Slots Evolved . | . . . . . Power . | . . . . . Propulsion . | . . . . . Utility . | . . . . . Weapon . | . . . . . Parts Attached 29 | 6 16 5 2 . Power 5 | 1 3 1 . . Engine 5 | 1 3 1 . . Core . | . . . . . Reactor . | . . . . . Propulsion 8 | 2 6 . . . Treads 4 | . 4 . . . Leg . | . . . . . Wheel 4 | 2 2 . . . Hover . | . . . . . Flight . | . . . . . Utility 5 | 1 2 2 . . Device 2 | . 2 . . . Storage 2 | 1 . 1 . . Processor . | . . . . . Hackware . | . . . . . Protection 1 | . . 1 . . Artifact . | . . . . . Weapon 11 | 2 5 2 2 . Energy Gun 3 | 2 1 . . . Energy Cannon . | . . . . . Ballistic Gun 2 | . 2 . . . Ballistic Cannon . | . . . . . Launcher 3 | . 1 1 1 . Special Weapon . | . . . . . Impact Weapon . | . . . . . Slashing Weapon . | . . . . . Piercing Weapon . | . . . . . Special Melee Weapon 3 | . 1 1 1 . Unidentified Prototypes . | . . . . . Parts Lost 7 | . 7 . . . Power 1 | . 1 . . . Propulsion 2 | . 2 . . . Utility 1 | . 1 . . . Weapon 3 | . 3 . . . Highest Loss Streak 6 | . 6 . . . To Critical Strikes . | . . . . . Average Slot Usage (%) 96 | . 88 99 99 100 Engine 13 | . 13 14 14 14 Treads 22 | . 5 28 28 28 Wheel 5 | . 21 . . . Device 2 | . 5 9 . . Storage 14 | . 14 14 14 14 Protection 9 | . . 4 14 14 Energy Gun 3 | . 15 . . . Ballistic Gun 12 | . 9 14 14 14 Launcher 10 | . 2 13 13 14 Naked Turns . | . . . . . Heaviest Build 22 | 12 14 22 22 22 Greatest Support 40 | 32 40 40 40 40 Greatest Overweight (x) 1 | . 1 . . . Average Overweight (x) . | . . . . . Largest Inventory Capacity 8 | 8 8 8 8 8 Average Capacity 7 | 7 8 8 8 8 Most Carried 8 | 6 8 7 8 8 Average Carried 6 | 3 7 6 7 8 Final Capacity 8 | 8 8 8 8 8 Final Carried 8 | 4 6 7 8 8 Class Distribution -------------------- 100% | Mutant Dominant Class ---------------- Mutant | -10/Materials Mutant | -10/Mines Mutant | -10/Exiles Mutant | -9/Mines Resources | -11 -10 -10 -10 -9 ----------- Run | Yrd Mat Min Exi Min Matter Collected 470 | 242 114 92 . 22 Remotely . | . . . . . Salvage Created 544 | . 448 96 . . Parts 39 | . 28 11 . . Haulers Intercepted . | . . . . . Recyclers Shooed . | . . . . . Parts Field Recycled . | . . . . . Retrieved Matter . | . . . . . Parts Self-Destructed . | . . . . . Prevented . | . . . . . Kills | -11 -10 -10 -10 -9 ------- Run | Yrd Mat Min Exi Min Combat Hostiles Destroyed 17 | . 12 5 . . Guns 14 | . 12 2 . . AOE 3 | . . 3 . . Classes Destroyed 3 | . 3 . . . Watcher 1 | . 1 . . . Swarmer 6 | . 3 3 . . Grunt 11 | . 9 2 . . Best Kill Streak 5 | . 5 3 . . Combat Bots Only 5 | . 5 3 . . Max Kills in Single Turn 2 | . 1 2 . . Gunslinging . | . . . . . Exploded 2 | . . 2 . . Melee . | . . . . . Uniques/NPCs Destroyed . | . . . . . Combat | -11 -10 -10 -10 -9 -------- Run | Yrd Mat Min Exi Min Hostile Shots Fired 93 | . 74 16 . 3 Missed 26 | . 22 4 . . Damage Taken 802 | . 571 179 . 52 Core 250 | . 178 61 . 11 Absorbed by Shields . | . . . . . Core Remaining (%) 100 | 100 . . . . Volleys Fired 53 | . 38 13 2 . Largest 2 | . 2 2 1 . Hottest 80 | . 80 50 20 . Shots Fired 75 | . 59 14 2 . Gun 73 | . 59 12 2 . Cannon . | . . . . . Launcher 2 | . . 2 . . Special . | . . . . . Kinetic 38 | . 24 12 2 . Thermal . | . . . . . Explosive 2 | . . 2 . . Electromagnetic 35 | . 35 . . . Robot Hit Streak 10 | . 10 2 . . Robot Miss Streak 2 | . 2 2 . . Penetration Max . | . . . . . Secondary Targets 1 | . 1 . . . Max Gunslinging Chain 1 | . 1 . . . Shots Hit Robots 49 | . 41 8 . . Core Hits 29 | . 22 7 . . Critical Kills . | . . . . . Critical Parts Destroyed . | . . . . . Critical Strikes . | . . . . . Melee Attacks 3 | . 2 1 . . Impact . | . . . . . Slashing . | . . . . . Piercing . | . . . . . Sneak Attacks 1 | . . 1 . . Combat Hostiles . | . . . . . Follow-up Attacks . | . . . . . Damage Inflicted 669 | . 441 228 . . Guns 488 | . 441 47 . . Cannons . | . . . . . Explosions 181 | . . 181 . . Melee . | . . . . . Ramming . | . . . . . Kinetic 203 | . 156 47 . . Thermal . | . . . . . Explosive 181 | . . 181 . . Electromagnetic 285 | . 285 . . . Impact . | . . . . . Slashing . | . . . . . Piercing . | . . . . . Highest Corruption . | . . . . . Average Corruption . | . . . . . Corruption Purged . | . . . . . Corruption Blocked . | . . . . . Overload Shots . | . . . . . Overflow Damage . | . . . . . Projectiles . | . . . . . Explosions . | . . . . . Melee . | . . . . . Knockbacks . | . . . . . Impact . | . . . . . Kinetic . | . . . . . Secondary . | . . . . . Self-Inflicted Damage . | . . . . . Shots . | . . . . . Rammed . | . . . . . Targets Rammed . | . . . . . Kicked . | . . . . . Crushed . | . . . . . Highest Temperature 122 | . 122 29 5 . Average Temperature 40 | . 45 14 5 . Received Heat Transfer 345 | . 252 93 . . Siege Activations . | . . . . . Robots Corrupted . | . . . . . Combat Hostiles . | . . . . . Parts Fried . | . . . . . Impact Corruptions . | . . . . . Robots Melted . | . . . . . Combat Hostiles . | . . . . . Parts Melted . | . . . . . Heat Transferred . | . . . . . Parts Sabotaged . | . . . . . Parts Stolen . | . . . . . Parts Stripped . | . . . . . Power Chain Reactions . | . . . . . Alert | -11 -10 -10 -10 -9 ------- Run | Yrd Mat Min Exi Min Peak Influence 182 | . 182 175 . . Initial 28 | . . 28 . . Average 33 | . 67 41 . . Maximum Alert Level . | . . . . . Low Security (%) 100 | 100 100 100 . 100 Level 1 . | . . . . . Level 2 . | . . . . . Level 3 . | . . . . . Level 4 . | . . . . . Level 5 . | . . . . . High Security . | . . . . . Max Security . | . . . . . Squads Dispatched 5 | . 4 1 . . Investigation 3 | . 2 1 . . Extermination . | . . . . . Reinforcement 2 | . 2 . . . Assault . | . . . . . Garrison . | . . . . . Intercept . | . . . . . Searches Triggered . | . . . . . Construction Impeded . | . . . . . Haulers Reinforced . | . . . . . Active Scanning Responses . | . . . . . Cargo Convoy Interrupts . | . . . . . Stealth | -11 -10 -10 -10 -9 --------- Run | Yrd Mat Min Exi Min Distress Signals . | . . . . . Communications Jammed . | . . . . . Distress Signals . | . . . . . Times Spotted 42 | . 17 5 . 20 Peak Tracking Total 20 | . 5 3 . 20 Tactical Retreats . | . . . . . Traps | -11 -10 -10 -10 -9 ------- Run | Yrd Mat Min Exi Min Traps Triggered 2 | . 2 . . . Indirectly . | . . . . . Trap Hack Attempts . | . . . . . Triggered . | . . . . . Disarmed 4 | . 4 . . . Reprogrammed . | . . . . . Reused . | . . . . . Traps Extracted . | . . . . . Installed . | . . . . . Triggered . | . . . . . Machines | -11 -10 -10 -10 -9 ---------- Run | Yrd Mat Min Exi Min Machines Disabled 1 | . 1 . . . Max in Single Turn 1 | . 1 . . . Machines Repaired . | . . . . . Machines Dismantled . | . . . . . Machines Sabotaged . | . . . . . Overloaded Fab Kills . | . . . . . Hacking | -11 -10 -10 -10 -9 --------- Run | Yrd Mat Min Exi Min Machines Accessed 9 | . 3 1 4 1 Terminals 2 | . 2 . . . Fabricators . | . . . . . Repair Stations . | . . . . . Recycling Units 1 | . 1 . . . Scanalyzers . | . . . . . Garrison Access . | . . . . . Total Hacks 63 | . 12 1 49 1 Successful 60 | . 9 1 49 1 Failed 3 | . 3 . . . Catastrophic 1 | . 1 . . . Database Lockouts . | . . . . . Manual 2 | . . . 2 . Terminals 9 | . 9 . . . Fabricators . | . . . . . Repair Stations . | . . . . . Recycling Units 3 | . 3 . . . Scanalyzers . | . . . . . Garrison Access . | . . . . . Terminal Hacks 57 | . 6 1 49 1 Record 51 | . 2 . 49 . Open Door 2 | . . 1 . 1 Emergency Access Points 1 | . 1 . . . Alert Level 2 | . 2 . . . Disarm Traps 1 | . 1 . . . Fabricator Hacks . | . . . . . Repair Station Hacks . | . . . . . Recycling Unit Hacks 3 | . 3 . . . Report Inventory 1 | . 1 . . . Retrieve Matter 1 | . 1 . . . Retrieve Components 1 | . 1 . . . Scanalyzer . | . . . . . Garrison Access Hacks . | . . . . . Unauthorized Hacks . | . . . . . Terminals . | . . . . . Fabricators . | . . . . . Repair Stations . | . . . . . Recycling Units . | . . . . . Scanalyzers . | . . . . . Garrison Access . | . . . . . Data Cores Recovered . | . . . . . Used . | . . . . . Hacking Detections 3 | . 3 . . . Full Trace Events 1 | . 1 . . . Feedback Events . | . . . . . Feedback Blocked . | . . . . . Robot Schematics Acquired . | . . . . . Robots Built . | . . . . . Authchips . | . . . . . Time . | . . . . . Total Robot Build Rating . | . . . . . Part Schematics Acquired . | . . . . . Parts Built . | . . . . . Authchips . | . . . . . Time . | . . . . . Total Part Build Rating . | . . . . . Parts Repaired . | . . . . . Time . | . . . . . Parts Recycled . | . . . . . Recycled Matter . | . . . . . Retrieved Matter 43 | . 43 . . . Retrieved Components 10 | . 10 . . . Parts Scanalyzed . | . . . . . Part Schematics Acquired . | . . . . . Parts Damaged . | . . . . . Bothacking | -11 -10 -10 -10 -9 ------------ Run | Yrd Mat Min Exi Min Used RIF Installer . | . . . . . Robots Hacked 2 | . 1 1 . . Non-combat 1 | . 1 . . . Combat 1 | . . 1 . . Robot Hacks Applied 2 | . 1 1 . . parse_system 2 | . 1 1 . . Relay Couplers Released . | . . . . . Fabnet Peak Effective % . | . . . . . Robots Rewired . | . . . . . Allies Hacked . | . . . . . Hacks Repelled . | . . . . . Allies | -11 -10 -10 -10 -9 -------- Run | Yrd Mat Min Exi Min Total Allies 2 | . . . . 2 Largest Group 2 | . . . . 2 Highest-Rated Group 46 | . . . . 46 Highest-Rated Ally 31 | . . . . 31 Total Orders . | . . . . . Ally Attacks . | . . . . . Total Damage . | . . . . . Kills . | . . . . . Allies Corrupted . | . . . . . Allies Melted . | . . . . . Intel | -11 -10 -10 -10 -9 ------- Run | Yrd Mat Min Exi Min Robot Analysis Total . | . . . . . Derelict Logs Recovered 2 | . . 1 . 1 Drone Launches . | . . . . . Drone Recoveries . | . . . . . Exploration | -11 -10 -10 -10 -9 ------------- Run | Yrd Mat Min Exi Min Turns Passed 3467 | 294 741 504 1369 559 Spaces Moved 2083 | 71 544 291 848 329 Core 3 | 2 1 . . . Treads 1545 | . 77 291 848 329 Legs . | . . . . . Wheels 535 | 69 466 . . . Hover . | . . . . . Flight . | . . . . . Fastest Speed 50 | 50 100 160 160 160 Average Speed 144 | 98 108 160 160 160 Slowest Speed 160 | 100 160 160 160 160 Overloaded Moves . | . . . . . Propulsion Burnouts . | . . . . . Robots Hopped . | . . . . . Cave-ins Triggered . | . . . . . Exploration Rate (%) 51 | 7 65 51 94 42 Regions Visited 4 Branch Regions 3 Pre-discovered Areas 3 | . . 2 1 . Known Exits Taken . | . . . . . Unknown Exits Taken 4 | 1 1 1 1 . Scrap Searched 2 | . . 1 . 1 Spaces Dug . | . . . . . Terrain Destroyed 12 | . . 12 . . Melee . | . . . . . Projectile . | . . . . . AOE 12 | . . 12 . . Terrain Rammed . | . . . . . Walls Destroyed . | . . . . . Machines Disabled . | . . . . . Actions | -11 -10 -10 -10 -9 --------- Run | Yrd Mat Min Exi Min Total 2474 | 294 641 317 861 361 Wait 257 | 208 16 . 1 32 Move 2079 | 70 543 290 847 329 Hop . | . . . . . Pick Up 36 | 10 18 4 4 . Fast Attach . | . . . . . Attach 20 | 6 11 1 2 . Detach 1 | . . 1 . . Swap 9 | . 5 4 . . Drop 16 | . 8 3 5 . Fire 53 | . 38 13 2 . Melee 3 | . 2 1 . . Ram . | . . . . . Kick . | . . . . . Crush . | . . . . . Escape Stasis . | . . . . . Rewire . | . . . . . Trap . | . . . . . Miscellaneous . | . . . . . Route ------- -11/Scrapyard -10/Materials (discovered 3 exits: [*Mat x2] / *Min) -10/Mines (discovered 3 exits: [*Mat x2] / *Exi) -10/Exiles (discovered 2 exits: *Min x2) -9/Mines (discovered 1 exit: [*Mat]) History --------- Turn | Location | Event 17 | -11/Scrapyard | Discovered new exit (range 15) 295 | -11/Scrapyard | Entered Materials 315 | -10/Materials | Build established: Mutant 786 | -10/Materials | Discovered new exit (range 4) 882 | -10/Materials | Core integrity fell below 50% 918 | -10/Materials | Discovered new exit (range 5) 924 | -10/Materials | Lost 6 parts (1p2n1u2w) 953 | -10/Materials | Discovered new exit (range 15) 1036 | -10/Materials | Entered Mines 1049 | -10/Mines | Met a Derelict bent on vengeance 1084 | -10/Mines | Discovered new exit (range 4) 1156 | -10/Mines | Discovered new exit (range 8) 1182 | -10/Mines | Learned location of Zion (-7) 1215 | -10/Mines | Met a Derelict shopkeep closing up shop 1377 | -10/Mines | Core integrity fell below 20% 1464 | -10/Mines | Learned location of Storage (-8) 1528 | -10/Mines | Deemed a non-threat by the Exiles lab entrance 1530 | -10/Mines | Discovered new exit (range 5) 1540 | -10/Mines | Entered Exiles 1579 | -10/Exiles | Discovered new exit (range 15) 1616 | -10/Exiles | Met 8R-AWN 1672 | -10/Exiles | Met EX-HEX 1782 | -10/Exiles | Met EX-DEC 1939 | -10/Exiles | Discovered new exit (range 12) 2097 | -10/Exiles | Visited The Gauntlet 2418 | -10/Exiles | Met EX-BIN 2501 | -10/Exiles | Aligned with FarCom system 2502 | -10/Exiles | Given EX-Vault access code 2592 | -10/Exiles | Opened EX-Vault 2606 | -10/Exiles | Found Prototype Ballistic Cannon 2732 | -10/Exiles | Warned to stay clear of 0b10 Research branches 2909 | -10/Exiles | Left Exiles lab with AWS/Autocannon 2909 | -10/Exiles | Entered Mines 2928 | -9/Mines | Met a Derelict who couldn't figure out how to use a Trap Extractor 3009 | -9/Mines | Discovered new exit (range 8) 3122 | -9/Mines | Learned Materials garrison access intel 3460 | -9/Mines | Assembled infested the area 3465 | -9/Mines | Assisted by a Guerilla fighting off Assembled 3468 | -9/Mines | Destroyed by as-51007 with Assembled Heavy Rifle Last Messages --------------- "We're, um, lost. You wouldn't happen to know the way out of here, would you?" Move into an ally to swap places with them. K-01 Serf collects debris. K-01 Serf cleans the Plasma Injector. ALERT: Infestation in the mines, dispatching Demolisher response squad. 6Q-Q6L(h): "I'll hold them off! Go on ahead or try to find another way!" HV Slug penetrates Wall. A derelict emerges from the shadows: "You need to get out of here! I've been tracking a group of Assembled to figure out where they're coming from, and they're closing on this area, come on!" as-09469 sneak attacks. [Achievement: Hunted] as-59942 sneak attacks. as-06655 sneak attacks. 6Q-Q6L(h) destroyed. Map ----- +----------------------------------------------------+ | ???## ######## ##### #?????# #????????? | | ????## #??????# #??## ##?????]!=![]#????????? | | ?????# #??????## #### #?????# !^^#?????????? | | ?????# #???????# ## #?????#! =#?????????? | | ?????# #???????## #????### ###????????? | | ?????# #????????## """ ####### ###??????? | | #????# #?????????## """ ## #??????? | | #????# #??????????# """ ### #??????? | | #????# #??????????## ##?# #??????? | | #????# #???????????# ##### #??????? | | #????# #???????????# #??????? | | #????# #???????????## #??????? | | #????# #????????????# ####### #??????? | | #????# #??????????### #?????# #??????? | | #????# #??????????# #?????########### ###??????? | | #????# #??????????# ###???????????????? #????????? | | ?????# ### ##???# #?????????????????? ????????? | | ?????# #???# #??????????????????###???????? | | ?????# ### #???# #????????????????????????????? | | ?????# #??????????# #????????????????????????????? | | ?????# #?????###### #????????????????????????????? | | ?????# #?????# #????????????????????????????? | | ?????# #?????# ######??????????##????????????????? | | ???## #?????# #?????????????a #????????????????? | | ???# ### ############ a ##???????????????? | | ????? ?# tz g @a%a a #???????????????? | | ????? ?################;#aaaaaaa#??????????????? | | ????? ????????????????###??aaaa ??????????? | | ????? ??????????????????????? a a ?????????? | | ????# ?????????????????????????a #?????????? | | ????## ??????????????????????????? ??????????? | | ?????? #????????????????????????????? ??????????? | | ?????? ??????????????????????????????????????????? | | ?????? ??????????????????????????????????????????? | | ?????? ??????????????????????????????????????????? | | ?????????????????????????????????????????????????? | | ?????????????????????????????????????????????????? | | ?????????????????????????????????????????????????? | | ?????????????????????????????????????????????????? | | ?????????????????????????????????????????????????? | | ?????????????????????????????????????????????????? | | ?????????????????????????????????????????????????? | | ?????????????????????????????????????????????????? | | ?????????????????????????????????????????????????? | | ?????????????????????????????????????????????????? | | ?????????????????????????????????????????????????? | | ?????????????????????????????????????????????????? | | ?????????????????????????????????????????????????? | | ?????????????????????????????????????????????????? | | ?????????????????????????????????????????????????? | +----------------------------------------------------+ Best States ------------- Heat Dissipation 25 Energy Generation 10 Energy Capacity 250 Matter Stores 300 Matter Capacity 300 Sight Range 16 Terrain Scan Density 10 ECM Strength 1 Armor Coverage 225 Evasion (%) 40 Recoil Reduction 2 Item Schematics ----------------- None Robot Schematics ------------------ None Fabricated ------------ Nothing Alien Tech Used ----------------- None Achievements -------------- Hunted Librarian Tourist Challenges ------------ None Game ------ Seed SupersonicLinearMachine Manual? 0 Play Time 00:37:04 Cumulative 3.8 hours Start 2024.04.06 @ 18:04:03 End 2024.04.06 @ 18:43:13 Sessions 1 Manual Loads 0 Difficulty Rogue Special Mode None Game No. 5 Rogue 5 Adventurer 0 Explorer 0 Win Type - Total 0 Types 0/0/0/0/0/0/0/0/0 Lore% 10 Gallery% 8 Achievement% 8 Wizard Run 0 Options --------- Layout 1 ASCII 0 Keyboard 0 Movement Arrows Keybinds 0 Fullscreen 1 Font 24/Smallcaps Map View 50x35 Zoom Use 0% Tactical HUD 0 Map Filters NONE Filters NONE Steam 1 RUN: d535d0c8-9c0c-4d14-bcd0-976f159dd492